bitfinex/quotes_BTCUSD_20230111
["timestamp","ask_amount","ask_price","bid_price","bid_amount"]
[1673481043286,1.4559,17921.0,17919.0,0.00542779]
[1673481043536,1.4559,17921.0,17919.0,0.56349379]
[1673481043786,0.002,17920.0,17919.0,0.56349379]
[1673481044332,0.32737714,17920.0,17919.0,0.00542779]
[1673481044530,0.46927259,17920.0,17919.0,0.00542779]
[1673481044783,0.40112,17920.0,17919.0,0.00542779]
[1673481045257,0.40112,17920.0,17919.0,0.10455779]
[1673481045258,0.05545208,17920.0,17919.0,0.10455779]
[1673481045528,0.05545208,17920.0,17919.0,1.52068979]
[1673481045759,0.05545208,17920.0,17919.0,1.22068979]
[1673481046499,2.289307,17925.0,17920.0,0.02993017]
[1673481046500,0.0546745,17922.0,17920.0,0.02993017]
[1673481046743,1.4158,17926.0,17923.0,0.3]
[1673481047325,0.05497757,17925.0,17923.0,1.694845]
[1673481047575,0.05157691,17925.0,17923.0,1.694845]
[1673481047832,1.4158,17926.0,17923.0,1.115875]
[1673481048325,1.3958,17926.0,17923.0,1.115875]
[1673481048838,1.3958,17926.0,17924.0,0.3]
[1673481049090,1.3958,17926.0,17924.0,1.415801]
[1673481049848,0.06329037,17925.0,17924.0,1.115801]
[1673481050099,0.06211402,17925.0,17924.0,0.557892]
[1673481050345,0.31115185,17928.0,17924.0,0.557892]
[1673481050614,1.04334685,17928.0,17924.0,0.557892]
[1673481050842,0.06314312,17925.0,17923.0,1.115854]
[1673481051091,1.04334685,17928.0,17923.0,1.115854]
[1673481051092,1.26960399,17928.0,17923.0,1.115837]
[1673481051359,0.0559786,17925.0,17923.0,1.115837]
[1673481051607,0.71180899,17928.0,17924.0,0.3]
[1673481051608,0.53740899,17928.0,17924.0,0.3]
[1673481051910,0.05487941,17925.0,17924.0,0.857905]
[1673481052376,0.05487941,17925.0,17924.0,1.994756]
[1673481052628,0.01115185,17928.0,17924.0,1.994756]
[1673481052877,0.01115185,17928.0,17925.0,0.3]
[1673481053159,0.01115185,17928.0,17926.0,1.973544]
[1673481053598,0.01115185,17928.0,17927.0,0.3]
[1673481053839,0.01115185,17928.0,17927.0,1.115634]
[1673481054094,0.01115185,17928.0,17927.0,1.415634]
[1673481054590,0.23740899,17928.0,17927.0,0.915634]
[1673481054849,0.23740899,17928.0,17922.0,1.283946]
[1673481054850,0.06309358,17925.0,17922.0,1.283946]
[1673481055094,0.22625714,17924.0,17923.0,0.55792]
[1673481055340,0.22625714,17924.0,17923.0,2.03118538]
[1673481055580,0.22625714,17924.0,17923.0,1.73118538]
[1673481055856,0.24215147,17927.0,17923.0,1.14586762]
[1673481056103,0.46840861,17927.0,17923.0,0.58792562]
[1673481056349,0.76840861,17927.0,17923.0,0.58792562]
[1673481056602,0.24215147,17927.0,17923.0,0.58792562]
[1673481056853,0.05490377,17927.0,17923.0,0.63488788]
[1673481057105,0.05490377,17927.0,17924.0,0.3]
[1673481057345,0.01115185,17928.0,17924.0,0.3]
[1673481057844,0.01115185,17928.0,17923.0,0.857935]
[1673481058079,0.23740899,17928.0,17923.0,0.547935]
[1673481058565,0.22625714,17927.0,17923.0,0.547935]
[1673481059072,0.3,17926.0,17923.0,0.547935]
[1673481059327,0.22625714,17926.0,17923.0,0.547935]
[1673481059594,0.3,17927.0,17923.0,0.547935]
[1673481059844,0.52625714,17927.0,17923.0,0.547935]
[1673481060099,0.56895785,17928.0,17923.0,0.557942]
[1673481060353,0.01115185,17928.0,17924.0,0.3]
[1673481060600,0.01115185,17928.0,17925.0,1.115751]
[1673481061098,0.01115185,17928.0,17926.0,0.3]
[1673481061356,0.01115185,17928.0,17925.0,1.115751]
[1673481061357,0.01115185,17928.0,17925.0,1.115731]
[1673481061632,0.01115185,17928.0,17926.0,0.557844]
[1673481062389,0.01115185,17928.0,17926.0,1.115692]
[1673481062634,0.01115185,17928.0,17926.0,0.557848]
[1673481062890,0.23740899,17928.0,17924.0,0.3]
[1673481063135,0.22625714,17927.0,17924.0,1.115813]
[1673481063382,0.22625714,17927.0,17925.0,0.3]
[1673481063629,0.01115185,17928.0,17925.0,0.857878]
[1673481063881,0.23740899,17928.0,17925.0,0.557878]
[1673481064126,0.01115185,17928.0,17925.0,0.557878]
[1673481064659,0.01115185,17928.0,17924.0,0.557885]
[1673481064903,0.23740899,17928.0,17924.0,1.115766]
[1673481065147,0.53740899,17928.0,17924.0,1.115766]
[1673481066407,0.23740899,17928.0,17924.0,1.115766]
[1673481066903,0.23740899,17928.0,17924.0,0.557885]
[1673481066904,1.09519599,17928.0,17924.0,0.557885]
[1673481067452,0.3,17927.0,17923.0,0.557914]
[1673481067704,1.08407914,17927.0,17923.0,0.557914]
[1673481068450,0.22625714,17926.0,17921.0,0.00015]
[1673481068707,0.1744,17924.0,17921.0,0.00015]
[1673481068967,0.40065714,17924.0,17921.0,0.00015]
[1673481069220,2.567,17926.0,17922.0,0.71235906]
[1673481069495,1.5305,17926.0,17922.0,0.557968]
[1673481069981,1.5305,17926.0,17923.0,0.4]
[1673481070236,0.05309092,17925.0,17923.0,1.215846]
[1673481070987,0.36337328,17925.0,17923.0,1.215846]
[1673481071234,0.06349246,17925.0,17923.0,1.215846]
[1673481071484,1.3568,17926.0,17923.0,1.215846]
[1673481072070,0.01115185,17928.0,17925.0,0.27894]
[1673481072271,0.04886889,17927.0,17926.0,1.02155021]
[1673481072534,0.06867222,17928.0,17926.0,1.02155021]
[1673481072789,0.06124925,17927.0,17926.0,0.72155021]
[1673481073043,0.06124925,17927.0,17926.0,1.27939721]
[1673481073295,0.06124925,17927.0,17926.0,0.72155021]
[1673481074066,0.06124925,17927.0,17926.0,1.02155021]
[1673481074303,0.06124925,17927.0,17926.0,1.32155021]
[1673481074796,0.01115185,17928.0,17926.0,2.02099249]
[1673481075038,0.07236955,17928.0,17927.0,1.835348]
[1673481075292,0.0694199,17928.0,17927.0,2.135348]
[1673481076052,0.07231728,17928.0,17927.0,1.556468]
[1673481076807,0.06379557,17928.0,17927.0,0.0420825]
[1673481077120,0.00263014,17928.0,17927.0,0.041704]
[1673481077318,0.05617731,17928.0,17927.0,0.041704]
[1673481078560,0.05617731,17928.0,17927.0,0.140834]
[1673481078830,0.00263014,17928.0,17927.0,2.19403237]
[1673481079076,0.00263014,17928.0,17927.0,2.67243406]
[1673481079328,0.0533904,17928.0,17927.0,2.72994258]
[1673481079576,0.0533904,17928.0,17927.0,2.42996149]
[1673481079843,0.0533904,17928.0,17927.0,0.698651]
[1673481080588,0.0533904,17928.0,17927.0,2.67243856]
[1673481080861,0.0533904,17928.0,17927.0,2.97243856]
[1673481081095,0.00263014,17928.0,17927.0,2.97243856]
[1673481081602,0.06334896,17928.0,17927.0,2.97243856]
[1673481081852,0.06334896,17928.0,17927.0,2.67243856]
[1673481082174,0.06334896,17928.0,17927.0,2.97243856]
[1673481082839,0.06334896,17928.0,17927.0,2.67243856]
[1673481083087,0.06334896,17928.0,17927.0,2.27330856]
[1673481084353,0.06334896,17928.0,17927.0,1.71549156]
[1673481085090,0.06334896,17928.0,17927.0,2.27330856]
[1673481085580,0.00263014,17928.0,17927.0,2.27330856]
[1673481085844,0.00263014,17928.0,17927.0,1.15767456]
[1673481086824,0.05934586,17928.0,17927.0,1.15767456]
[1673481087074,0.07095433,17928.0,17927.0,1.15767456]
[1673481087336,0.00263014,17928.0,17927.0,1.15767456]
[1673481087598,0.07056358,17928.0,17927.0,1.15767456]
[1673481088079,0.01076074,17930.0,17928.0,0.3]
[1673481088349,0.18899716,17932.0,17928.0,0.3]
[1673481088628,0.01579716,17932.0,17929.0,1.11593596]
[1673481088854,0.01579716,17932.0,17930.0,0.3]
[1673481089110,0.01579716,17932.0,17931.0,1.41593596]
[1673481089373,0.01579716,17932.0,17931.0,1.71593596]
[1673481091113,0.01579716,17932.0,17931.0,2.87117396]
[1673481091367,0.00487897,17932.0,17931.0,3.25386977]
[1673481091618,0.00487897,17932.0,17931.0,3.38114055]
[1673481091873,0.00487897,17932.0,17931.0,4.44693164]
[1673481092122,0.00468142,17934.0,17933.0,0.3396]
[1673481092372,0.00468142,17934.0,17933.0,4.76153037]
[1673481092620,0.00468142,17934.0,17933.0,4.42176929]
[1673481092910,0.00468142,17934.0,17933.0,4.26758896]
[1673481093169,0.00468142,17934.0,17933.0,4.382606]
[1673481093414,0.00468142,17934.0,17933.0,4.32509748]
[1673481093904,0.00468142,17934.0,17933.0,4.95287681]
[1673481094666,0.00468142,17934.0,17933.0,5.12707681]
[1673481095168,0.00468142,17934.0,17933.0,3.08882896]
[1673481095421,0.00468142,17934.0,17933.0,3.66763896]
[1673481097413,0.00468142,17934.0,17933.0,3.36763896]
[1673481097663,0.00468142,17934.0,17933.0,2.23119796]
[1673481097914,0.00468142,17934.0,17933.0,1.115262]
[1673481098177,0.00468142,17934.0,17932.0,0.56138216]
[1673481098421,0.00468142,17934.0,17933.0,0.68908318]
[1673481098681,0.00468142,17934.0,17933.0,3.21995259]
[1673481099706,0.00468142,17934.0,17933.0,3.51995259]
[1673481101137,0.00468142,17934.0,17933.0,2.83086941]
[1673481101378,0.00144247,17934.0,17933.0,2.83086941]
[1673481102370,0.00144247,17934.0,17933.0,4.0158275]
[1673481102621,0.00144247,17934.0,17933.0,3.82797793]
[1673481102884,0.0003375,17934.0,17933.0,3.82797793]
[1673481103120,0.0003375,17934.0,17933.0,4.85200837]
[1673481103363,0.0003375,17934.0,17933.0,4.85195248]
[1673481103631,0.0003375,17934.0,17933.0,4.39806929]
[1673481104601,0.0003375,17934.0,17933.0,4.39216231]
[1673481105126,0.0003375,17934.0,17933.0,4.46534912]
[1673481105374,0.01603187,17938.0,17934.0,0.92565773]
[1673481105633,0.01603187,17938.0,17937.0,0.27872]
[1673481105882,0.01603187,17938.0,17937.0,2.551238]
[1673481107332,1.87e-06,17938.0,17937.0,6.01166516]
[1673481107627,1.87e-06,17938.0,17937.0,6.4645708]
[1673481107870,1.87e-06,17938.0,17937.0,7.0220768]
[1673481108360,0.01571616,17941.0,17938.0,0.3]
[1673481108631,0.01571616,17941.0,17940.0,0.79248]
[1673481108889,0.01571616,17941.0,17940.0,3.16964464]
[1673481109141,0.01571616,17941.0,17940.0,3.16954245]
[1673481109391,0.01571616,17941.0,17940.0,3.83619368]
[1673481109635,0.01571616,17941.0,17940.0,3.16954245]
[1673481110149,0.01571616,17941.0,17940.0,3.86649164]
[1673481110391,0.01571616,17941.0,17940.0,3.34374245]
[1673481110636,0.01571616,17941.0,17940.0,3.16954245]
[1673481110931,0.01571616,17941.0,17940.0,2.22994245]
[1673481111177,0.01571616,17941.0,17940.0,1.114826]
[1673481112194,0.00690566,17941.0,17940.0,1.114826]
[1673481112682,0.00690566,17941.0,17940.0,1.414826]
[1673481112939,0.00690566,17941.0,17940.0,2.52994665]
[1673481113193,0.00690566,17941.0,17940.0,1.414826]
[1673481113751,0.00690566,17941.0,17940.0,1.714826]
[1673481113994,0.00690566,17941.0,17940.0,1.414886]
[1673481114507,0.00690566,17941.0,17940.0,1.114886]
[1673481114777,0.00690566,17941.0,17940.0,1.414886]
[1673481115246,0.00690566,17941.0,17940.0,1.714886]
[1673481115493,0.00690566,17941.0,17940.0,3.10868292]
[1673481115719,0.00199824,17941.0,17940.0,3.10868292]
[1673481116499,0.00199824,17941.0,17940.0,2.53000292]
[1673481116753,0.00199824,17941.0,17940.0,2.83000292]
[1673481117507,0.00199824,17941.0,17940.0,2.53000292]
[1673481117752,0.00199824,17941.0,17940.0,1.114886]
[1673481118001,0.00199824,17941.0,17940.0,1.454486]
[1673481118272,0.00199824,17941.0,17940.0,3.16958976]
[1673481118519,0.00199824,17941.0,17940.0,3.46958976]
[1673481118767,0.00199824,17941.0,17940.0,2.50867976]
[1673481119021,0.00199824,17941.0,17940.0,2.22998976]
[1673481119749,0.00199824,17941.0,17940.0,2.52998976]
[1673481120028,0.00199824,17941.0,17940.0,2.52992976]
[1673481120300,0.00199824,17941.0,17940.0,2.22992976]
[1673481120803,0.22825538,17941.0,17940.0,1.11510376]
[1673481121055,0.00199824,17941.0,17939.0,6e-05]
[1673481124040,0.00199824,17941.0,17937.0,0.557504]
[1673481124041,0.30199824,17941.0,17937.0,0.557504]
[1673481124285,0.22825538,17941.0,17937.0,0.557504]
[1673481124539,0.22825538,17941.0,17938.0,1.11536641]
[1673481124788,0.00199824,17941.0,17938.0,1.11536641]
[1673481125294,0.00199824,17941.0,17938.0,1.67283641]
[1673481125542,0.00199824,17941.0,17938.0,0.55747]
[1673481126557,0.00199824,17941.0,17939.0,1.39403928]
[1673481126809,0.00199824,17941.0,17940.0,2.56974528]
[1673481127049,0.00053325,17941.0,17940.0,4.7846668]
[1673481127568,0.00053325,17941.0,17940.0,5.96858728]
[1673481127824,0.01625866,17944.0,17942.0,0.3396]
[1673481128082,0.01625866,17944.0,17943.0,4.47191554]
[1673481128325,0.01625866,17944.0,17943.0,3.36590928]
[1673481128575,2.86301341,17949.0,17944.0,0.3]
[1673481128833,3.03721341,17949.0,17945.0,1.67256128]
[1673481129086,0.3,17948.0,17943.0,0.55732]
[1673481129344,0.3,17948.0,17944.0,1.11505911]
[1673481129345,0.75165714,17947.0,17944.0,1.11505911]
[1673481129590,0.1742,17947.0,17944.0,1.11505911]
[1673481131059,2.86301341,17949.0,17945.0,0.71486552]
[1673481131308,2.86301341,17949.0,17946.0,3.06532211]
[1673481131561,2.86301341,17949.0,17947.0,1.11505911]
[1673481132074,2.86301341,17949.0,17945.0,0.557252]
[1673481132318,0.1739,17947.0,17944.0,0.00015]
[1673481132569,0.3,17946.0,17944.0,0.00015]
[1673481132817,0.52625714,17946.0,17944.0,0.00015]
[1673481133066,0.40015714,17945.0,17944.0,0.00015]
[1673481133326,1.31699999,17945.0,17944.0,0.00015]
[1673481133573,1.39074285,17945.0,17944.0,0.00015]
[1673481133781,1.56494285,17945.0,17944.0,0.00015]
[1673481134331,1.77704285,17945.0,17941.0,0.00042187]
[1673481134608,2.00039499,17944.0,17941.0,0.00042187]
[1673481134861,0.2058,17942.0,17941.0,0.00042187]
[1673481136433,0.5058,17942.0,17941.0,0.00042187]
[1673481137431,2.30905099,17942.0,17941.0,1.87e-06]
[1673481137679,2.83750351,17942.0,17941.0,1.87e-06]
[1673481137924,2.33154485,17942.0,17941.0,1.87e-06]
[1673481139439,2.33154485,17942.0,17941.0,6.187e-05]
[1673481139948,2.83755111,17942.0,17941.0,6.187e-05]
[1673481140446,3.18535111,17942.0,17941.0,6.187e-05]
[1673481140941,2.67934485,17942.0,17941.0,6.187e-05]
[1673481141200,0.5248,17942.0,17941.0,6.187e-05]
[1673481141449,0.8248,17942.0,17941.0,6.187e-05]
[1673481141710,0.4736,17942.0,17941.0,6.187e-05]
[1673481141963,0.8248,17942.0,17941.0,6.187e-05]
[1673481142709,1.382151,17942.0,17941.0,6.187e-05]
[1673481143726,0.1736,17942.0,17941.0,6.187e-05]
[1673481143986,0.1742,17944.0,17941.0,0.09919187]
[1673481144236,0.1742,17944.0,17941.0,0.65657387]
[1673481144489,0.1742,17944.0,17941.0,0.55744387]
[1673481144978,0.1742,17944.0,17941.0,1.11482587]
[1673481145227,0.1592,17944.0,17941.0,1.11482587]
[1673481145716,0.1592,17944.0,17941.0,0.55744387]
[1673481145964,0.38545714,17944.0,17941.0,0.55744387]
[1673481146215,0.38545714,17944.0,17941.0,6.187e-05]
[1673481146216,0.1742,17942.0,17941.0,6.187e-05]
[1673481146458,0.75165714,17942.0,17941.0,6.187e-05]
[1673481146706,0.1742,17942.0,17941.0,6.187e-05]
[1673481147464,0.1742,17942.0,17941.0,1.87e-06]
[1673481147720,0.4726,17943.0,17941.0,1.87e-06]
[1673481149161,0.3512,17942.0,17941.0,1.87e-06]
[1673481149437,0.4726,17943.0,17941.0,1.87e-06]
[1673481149438,1.029921,17943.0,17941.0,1.87e-06]
[1673481149697,0.5254,17942.0,17941.0,1.87e-06]
[1673481150215,1.082751,17942.0,17941.0,1.87e-06]
[1673481150466,0.1742,17942.0,17941.0,1.87e-06]
[1673481152720,0.5254,17942.0,17941.0,1.87e-06]
[1673481152957,1.640102,17942.0,17941.0,1.87e-06]
[1673481154232,1.082751,17942.0,17941.0,1.87e-06]
[1673481155459,1.640102,17942.0,17941.0,1.87e-06]
[1673481158930,2.76309585,17942.0,17941.0,1.87e-06]
[1673481159188,3.26910211,17942.0,17940.0,1.87e-06]
[1673481159430,1.72284911,17941.0,17940.0,1.87e-06]
[1673481159683,2.88898885,17941.0,17940.0,1.87e-06]
[1673481159930,3.06318885,17941.0,17940.0,1.87e-06]
[1673481160682,3.03818885,17941.0,17940.0,1.87e-06]
[1673481161181,3.71839511,17941.0,17940.0,1.87e-06]
[1673481161433,3.88310689,17941.0,17940.0,1.87e-06]
[1673481161931,5.813e-05,17939.0,17935.0,0.00497882]
[1673481162182,0.3,17937.0,17935.0,0.00497882]
[1673481162432,1.48909999,17936.0,17935.0,0.00497882]
[1673481162675,3.11018025,17936.0,17935.0,0.00497882]
[1673481162923,2.88392311,17936.0,17935.0,0.00497882]
[1673481163213,3.18392311,17936.0,17935.0,0.00497882]
[1673481163720,2.67791685,17936.0,17935.0,0.00497882]
[1673481164234,1.94747985,17936.0,17935.0,0.00497882]
[1673481165055,2.50501685,17936.0,17935.0,0.00497882]
[1673481165773,3.01102311,17936.0,17935.0,0.00497882]
[1673481166287,2.20501685,17936.0,17935.0,0.00497882]
[1673481167301,1.94747985,17936.0,17935.0,0.00497882]
[1673481167803,1.92131036,17936.0,17935.0,0.00497882]
[1673481168055,2.47884736,17936.0,17935.0,0.00497882]
[1673481168559,0.3,17935.0,17929.0,3.1000927]
[1673481168835,0.3,17935.0,17929.0,0.56276502]
[1673481168836,1.85956313,17934.0,17929.0,0.56276502]
[1673481169086,0.3,17932.0,17929.0,0.56276502]
[1673481169384,0.22625714,17931.0,17929.0,0.56276502]
[1673481169628,0.22625714,17930.0,17929.0,0.00503702]
[1673481169880,0.40045714,17931.0,17929.0,0.00503702]
[1673481170132,0.55,17935.0,17929.0,0.86279202]
[1673481170630,0.22625714,17934.0,17929.0,0.56279202]
[1673481171131,0.22625714,17934.0,17930.0,0.3]
[1673481171383,0.3,17935.0,17930.0,0.3]
[1673481171639,0.25,17936.0,17931.0,0.27884]
[1673481171913,0.25,17936.0,17932.0,0.557646]
[1673481172162,1.387,17937.0,17932.0,0.61515452]
[1673481172406,1.387,17937.0,17932.0,1.17281652]
[1673481172666,0.22625714,17936.0,17932.0,0.61517052]
[1673481172920,0.3,17935.0,17932.0,0.61517052]
[1673481173176,0.3,17935.0,17931.0,1.115336]
[1673481173424,0.52625714,17935.0,17932.0,0.55766]
[1673481173729,0.3,17935.0,17932.0,0.55766]
[1673481173965,0.3,17935.0,17931.0,0.55767]
[1673481174217,0.52625714,17935.0,17931.0,1.115342]
[1673481175723,0.52625714,17935.0,17931.0,0.557672]
[1673481176478,0.71543466,17935.0,17931.0,0.557672]
[1673481176727,1.83057666,17935.0,17930.0,0.557698]
[1673481176982,2.86859914,17935.0,17930.0,0.557698]
[1673481177744,0.79189999,17934.0,17929.0,0.00503702]
[1673481178004,1.64262564,17933.0,17929.0,0.00503702]
[1673481178254,0.3,17932.0,17929.0,0.00503702]
[1673481178687,0.52625714,17932.0,17929.0,0.00503702]
[1673481179017,0.3,17932.0,17929.0,0.00503702]
[1673481179548,1.3378,17933.0,17930.0,0.51519091]
[1673481179796,1.3378,17933.0,17929.0,1.00004233]
[1673481180034,1.56405714,17933.0,17929.0,1.55779033]
[1673481180317,1.56405714,17933.0,17929.0,0.06254554]
[1673481180542,0.3,17932.0,17929.0,0.00503702]
[1673481180780,0.3,17932.0,17929.0,0.52757316]
[1673481181160,1.56405714,17933.0,17929.0,1.08532316]
[1673481181279,1.3378,17933.0,17929.0,1.08532316]
[1673481181776,1.56405714,17933.0,17929.0,0.56278702]
[1673481182024,1.3378,17933.0,17930.0,0.3]
[1673481182746,1.3378,17933.0,17931.0,0.05750852]
[1673481183035,1.3378,17933.0,17930.0,0.857721]
[1673481183288,1.3378,17933.0,17931.0,1.115382]
[1673481183289,0.56847303,17933.0,17931.0,1.115382]
[1673481183531,0.56847303,17933.0,17931.0,1.415382]
[1673481184076,0.3,17940.0,17931.0,2.015382]
[1673481184290,0.22625714,17940.0,17934.0,0.48647763]
[1673481184559,1.2459,17941.0,17934.0,0.31237763]
[1673481184806,0.01664823,17942.0,17935.0,1.14931452]
[1673481185051,0.24290537,17942.0,17936.0,0.81245003]
[1673481185310,0.01664823,17942.0,17936.0,0.81245003]
[1673481185569,0.01664823,17942.0,17937.0,0.85749]
[1673481185842,0.01664823,17942.0,17938.0,0.27873]
[1673481186083,0.01664823,17942.0,17939.0,0.3]
[1673481186361,0.01664823,17942.0,17939.0,0.857438]
[1673481186905,0.24290537,17942.0,17938.0,0.857444]
[1673481187150,0.24290537,17942.0,17938.0,0.557444]
[1673481187617,0.2374787,17942.0,17938.0,1.17242752]
[1673481187876,0.01122156,17942.0,17938.0,1.87427584]
[1673481188134,0.01122156,17942.0,17939.0,0.7742]
[1673481188389,0.01122156,17942.0,17939.0,1.28592259]
[1673481188640,0.01122156,17942.0,17940.0,1.47233452]
[1673481188891,0.01122156,17942.0,17940.0,1.75104452]
[1673481189141,0.01122156,17942.0,17941.0,0.05750852]
[1673481189383,0.01122156,17942.0,17941.0,1.114764]
[1673481191864,0.01122156,17942.0,17941.0,1.414764]
[1673481193352,0.01122156,17942.0,17941.0,1.714764]
[1673481194122,0.01122156,17942.0,17941.0,2.50523914]
[1673481194454,1.19625451,17948.0,17942.0,0.58425218]
[1673481194455,0.01675451,17948.0,17942.0,0.58425218]
[1673481194687,0.01675451,17948.0,17945.0,0.27863]
[1673481194925,0.01675451,17948.0,17946.0,0.6]
[1673481195183,0.01675451,17948.0,17946.0,2.02918952]
[1673481195462,0.01675451,17948.0,17946.0,1.971681]
[1673481195715,0.01675451,17948.0,17947.0,0.57858]
[1673481195943,0.01675451,17948.0,17947.0,1.90352531]
[1673481196226,0.01675451,17948.0,17947.0,3.01791731]
[1673481196470,0.01690351,17950.0,17948.0,0.46648504]
[1673481196703,0.01690351,17950.0,17949.0,3.30239985]
[1673481196959,0.01690351,17950.0,17949.0,2.785202]
[1673481197203,0.01690351,17950.0,17949.0,3.87786095]
[1673481197458,0.01690351,17950.0,17949.0,2.271402]
[1673481197734,0.01690351,17950.0,17949.0,3.17083293]
[1673481197980,0.01690351,17950.0,17949.0,3.22834145]
[1673481198258,0.01650391,17950.0,17949.0,3.22834145]
[1673481199009,0.01650391,17950.0,17949.0,3.40204145]
[1673481199263,0.01650391,17950.0,17949.0,3.34453293]
[1673481199750,0.01650391,17950.0,17949.0,1.671402]
[1673481199751,0.01500391,17950.0,17949.0,1.671402]
[1673481200008,0.01500391,17950.0,17949.0,0.557134]
[1673481200254,0.01500391,17950.0,17948.0,0.56816904]
[1673481200519,0.24126105,17950.0,17948.0,0.56816904]
[1673481200763,0.01500391,17950.0,17948.0,0.56816904]
[1673481201531,0.01500391,17950.0,17948.0,1.12533404]
[1673481201785,0.01500391,17950.0,17948.0,0.01100504]
[1673481202286,0.01500391,17950.0,17948.0,0.58953071]
[1673481203042,0.24126105,17950.0,17948.0,0.01100504]
[1673481203292,0.3512,17949.0,17948.0,0.01100504]
[1673481203792,2.03111085,17949.0,17948.0,0.01100504]
[1673481204302,0.3,17948.0,17944.0,0.00015]
[1673481204558,1.87309599,17947.0,17944.0,0.6548611]
[1673481204798,0.6512,17946.0,17944.0,0.00015]
[1673481205060,0.52625714,17946.0,17944.0,0.00015]
[1673481205308,0.5254,17945.0,17944.0,0.00015]
[1673481205557,1.05165714,17945.0,17944.0,0.00015]
[1673481205809,2.50555885,17945.0,17944.0,0.00015]
[1673481206066,2.50555885,17945.0,17941.0,0.6407974]
[1673481206322,0.3,17944.0,17942.0,0.61182406]
[1673481206567,0.3,17946.0,17943.0,0.51593814]
[1673481206814,1.030561,17949.0,17945.0,0.52374613]
[1673481207068,0.4734,17949.0,17945.0,0.52374613]
[1673481207339,0.4734,17949.0,17944.0,0.3]
[1673481207340,0.4734,17949.0,17944.0,0.85726]
[1673481207604,0.39965714,17949.0,17945.0,0.557253]
[1673481207867,0.87210791,17950.0,17945.0,0.557253]
[1673481207868,0.31500391,17950.0,17945.0,0.557253]
[1673481208137,1.1069039,17950.0,17945.0,0.557253]
[1673481208381,1.1069039,17950.0,17944.0,0.85726]
[1673481208618,0.22625714,17949.0,17944.0,0.85726]
[1673481209119,0.22625714,17949.0,17944.0,1.7405971]
[1673481209372,0.88064676,17950.0,17944.0,1.7405971]
[1673481209373,0.22625714,17948.0,17944.0,1.7405971]
[1673481209882,0.22625714,17948.0,17944.0,1.114549]
[1673481210143,0.22625714,17948.0,17945.0,0.52639494]
[1673481210388,2.68005376,17950.0,17945.0,0.52639494]
[1673481210638,2.9063109,17950.0,17945.0,0.52639494]
[1673481210882,2.68005376,17950.0,17945.0,1.08364194]
[1673481211131,2.9063109,17950.0,17945.0,1.08364194]
[1673481211385,1.25730391,17950.0,17945.0,1.393135]
[1673481211637,1.48356105,17950.0,17947.0,0.3]
[1673481211888,1.25730391,17950.0,17948.0,0.557165]
[1673481212395,1.25730391,17950.0,17948.0,1.11433]
[1673481212396,0.01500391,17950.0,17948.0,1.11433]
[1673481212659,0.01500391,17950.0,17949.0,0.3]
[1673481212919,0.01500391,17950.0,17949.0,0.557134]
[1673481213460,0.01500391,17950.0,17949.0,1.09862628]
[1673481213675,0.01500391,17950.0,17949.0,1.95576028]
[1673481213924,0.00925969,17950.0,17949.0,1.992838]
[1673481214169,0.00925969,17950.0,17949.0,2.68217188]
[1673481214411,0.00925969,17950.0,17949.0,2.79886336]
[1673481214941,0.00925969,17950.0,17949.0,2.162038]
[1673481215682,0.00925969,17950.0,17949.0,2.76527201]
[1673481215929,0.00925969,17950.0,17949.0,2.82278053]
[1673481216692,0.00925969,17950.0,17949.0,1.94097652]
[1673481216945,0.00925969,17950.0,17949.0,1.16677652]
[1673481217208,0.00925969,17950.0,17949.0,1.109268]
[1673481218930,0.00925969,17950.0,17949.0,0.552134]
[1673481219932,0.00925969,17950.0,17949.0,1.109268]
[1673481220176,0.00925969,17950.0,17949.0,2.22390794]
[1673481220425,0.00925969,17950.0,17949.0,2.52390794]
[1673481220678,0.00925969,17950.0,17949.0,2.82390794]
[1673481221145,0.00925969,17950.0,17949.0,3.38104194]
[1673481223485,0.00925969,17950.0,17949.0,3.89858671]
[1673481223736,0.00925969,17950.0,17949.0,3.43855046]
[1673481224485,0.00925969,17950.0,17949.0,3.38104194]
[1673481224732,0.00925969,17950.0,17949.0,3.55474194]
[1673481225740,0.00385275,17950.0,17949.0,4.67182947]
[1673481225983,0.00385275,17950.0,17949.0,5.74373343]
[1673481226231,0.00385275,17950.0,17949.0,3.08104194]
[1673481226485,0.00385275,17950.0,17949.0,2.78104194]
[1673481227250,0.00385275,17950.0,17949.0,3.08104194]
[1673481227503,0.00385275,17950.0,17949.0,3.38104194]
[1673481227991,0.00385275,17950.0,17949.0,3.08104194]
[1673481228238,0.10297275,17950.0,17949.0,2.22390794]
[1673481228509,0.10297275,17950.0,17949.0,1.11463994]
[1673481228755,0.32922989,17950.0,17947.0,1.11463994]
[1673481229003,0.22625714,17949.0,17947.0,1.11463994]
[1673481229243,0.22625714,17949.0,17948.0,1.11463994]
[1673481229491,0.00385275,17950.0,17946.0,1.11463994]
[1673481229492,0.30385275,17950.0,17946.0,1.11463994]
[1673481229739,0.22625714,17949.0,17947.0,1.11463994]
[1673481229994,0.3512,17948.0,17944.0,0.557261]
[1673481230242,0.22625714,17947.0,17945.0,1.11487265]
[1673481230748,0.3,17948.0,17945.0,1.11487265]
[1673481231239,0.4742,17948.0,17946.0,1.11487265]
[1673481231483,0.4742,17948.0,17944.0,1.11487265]
[1673481231729,0.4742,17948.0,17945.0,1.11487265]
[1673481232011,1.031366,17948.0,17946.0,1.11487265]
[1673481232259,0.857166,17948.0,17947.0,1.11487265]
[1673481232528,2.33117385,17948.0,17944.0,1.11487265]
[1673481232779,2.33117385,17948.0,17941.0,0.707355]
[1673481232780,0.17161426,17945.0,17941.0,0.707355]
[1673481233046,0.525501,17944.0,17942.0,1.11503278]
[1673481233352,0.474301,17944.0,17942.0,1.11503278]
[1673481234285,0.1742,17943.0,17942.0,1.11503278]
[1673481234552,0.5254,17943.0,17939.0,1.11518278]
[1673481234796,0.22625714,17942.0,17939.0,1.11518278]
[1673481235291,0.52625714,17942.0,17940.0,0.00493994]
[1673481235543,0.3,17942.0,17941.0,1.11503278]
[1673481236833,0.3,17942.0,17940.0,0.00493994]
[1673481236834,1.59719385,17942.0,17940.0,0.00493994]
[1673481237081,0.1741,17941.0,17940.0,0.00493994]
[1673481237329,0.1741,17941.0,17940.0,1.1201773]
[1673481238103,0.17151426,17941.0,17940.0,1.1201773]
[1673481238615,0.17151426,17941.0,17940.0,0.00493994]
[1673481239121,0.72889626,17941.0,17940.0,0.00493994]
[1673481239621,2.84839147,17941.0,17940.0,0.00493994]
[1673481239874,3.02259147,17941.0,17940.0,0.00493994]
[1673481240396,2.50580685,17941.0,17940.0,0.00493994]
[1673481240643,3.02253764,17941.0,17940.0,0.00493994]